fUST/lending_fUST_20250306
["ID","MTS","AMOUNT","RATE_DAILY","PERIOD"]
[355527390,1741237852651,-746.65,0.00041643,120]
[355527391,1741237852660,-500.0,0.00041643,120]
[355527392,1741237852669,-500.0,0.00041643,120]
[355527393,1741237852677,-727.8,0.00041643,120]
[355527394,1741237852687,-500.0,0.00041643,120]
[355527395,1741237852696,-500.0,0.00041643,120]
[355527396,1741237852801,-500.0,0.00041643,120]
[355527397,1741237852810,-500.0,0.00041643,120]
[355527398,1741237852819,-500.0,0.00041643,120]
[355527399,1741237852828,-500.0,0.00041643,120]
[355527400,1741237852837,-500.0,0.00041643,120]
[355527401,1741237852846,-565.26948458,0.00041643,120]
[355527402,1741237852855,-500.0,0.00041643,120]
[355527403,1741237852864,-500.0,0.00041643,120]
[355527404,1741237852873,-500.0,0.00041643,120]
[355527405,1741237852882,-500.0,0.00041643,120]
[355527406,1741237852891,-500.0,0.00041643,120]
[355527407,1741237852900,-500.0,0.00041643,120]
[355527408,1741237852909,-515.04653034,0.00041643,120]
[355527409,1741237852918,-500.0,0.00041643,120]
[355527410,1741237852927,-500.0,0.00041643,120]
[355527411,1741237852936,-500.0,0.00041643,30]
[355527412,1741237852944,-500.0,0.00041643,120]
[355527413,1741237852953,-500.0,0.00041643,120]
[355527414,1741237852962,-500.0,0.00041643,120]
[355527415,1741237852971,-500.0,0.00041643,120]
[355527416,1741237852979,-500.0,0.00041643,120]
[355527417,1741237852987,-500.0,0.00041643,120]
[355527418,1741237852996,-500.0,0.00041643,120]
[355527419,1741237853005,-500.0,0.00041643,120]
[355527420,1741237853013,-500.0,0.00041643,120]
[355527421,1741237853022,-500.0,0.00041643,120]
[355527422,1741237853031,-500.0,0.00041643,14]
[355527423,1741237853040,-500.0,0.00041643,120]
[355527424,1741237853049,-500.0,0.00041643,120]
[355527425,1741237853058,-500.0,0.00041643,120]
[355527426,1741237853067,-526.01434932,0.00041643,120]
[355527427,1741237853076,-500.0,0.00041643,120]
[355527428,1741237853085,-1078.51,0.00041643,120]
[355527429,1741237853094,-560.58755673,0.00041643,120]
[355527430,1741237853103,-500.0,0.00041643,120]
[355527431,1741237853111,-500.0,0.00041643,120]
[355527432,1741237853121,-500.0,0.00041643,120]
[355527433,1741237853130,-500.0,0.00041643,120]
[355527434,1741237853139,-500.0,0.00041643,120]
[355527435,1741237853148,-500.0,0.00041643,120]
[355527436,1741237853157,-500.0,0.00041643,120]
[355527437,1741237853169,-500.0,0.00041643,120]
[355527438,1741237853179,-460.92810591,0.00041643,120]
[355527439,1741237853188,-152.56176775,0.00041643,120]
[355527440,1741237853197,-884.88,0.00041643,120]
[355527441,1741237853206,-858.76,0.00041643,120]
[355527442,1741237853215,-833.49,0.00041643,120]
[355527443,1741237853223,-500.0,0.00041643,120]
[355527444,1741237853231,-241.065849,0.00041643,120]
[355527445,1741237853241,-500.0,0.00041643,120]
[355527446,1741237853249,-834.25,0.00041643,120]
[355527447,1741237853259,-632.98,0.00041643,120]
[355527448,1741237853268,-500.0,0.00041643,120]
[355527449,1741237853276,-500.0,0.00041643,120]
[355527450,1741237853285,-307.50908162,0.00041643,120]
[355527451,1741237853294,-500.0,0.00041643,120]
[355527452,1741237853303,-500.0,0.00041643,120]
[355527453,1741237853313,-500.0,0.00041643,120]
[355527454,1741237853322,-500.0,0.00041643,120]
[355527455,1741237853330,-500.0,0.00041643,120]
[355527456,1741237853339,-500.0,0.00041643,120]
[355527457,1741237853348,-500.0,0.00041643,120]
[355527458,1741237853357,-1000.0,0.00041643,120]
[355527459,1741237853366,-500.0,0.00041643,120]
[355527460,1741237853375,-500.78654949,0.00041643,120]
[355527461,1741237853385,-500.0,0.00041643,120]
[355527462,1741237853394,-500.0,0.00041643,120]
[355527463,1741237853403,-500.0,0.00041643,120]
[355527464,1741237853412,-500.0,0.00041643,120]
[355527465,1741237853421,-500.0,0.00041643,120]
[355527466,1741237853431,-500.0,0.00041643,120]
[355527467,1741237853440,-500.0,0.00041643,120]
[355527468,1741237853449,-527.00084736,0.00041643,120]
[355527469,1741237853457,-500.0,0.00041643,120]
[355527470,1741237853467,-500.0,0.00041643,120]
[355527471,1741237853476,-500.0,0.00041643,120]
[355527472,1741237853486,-699.26,0.00041643,120]
[355527473,1741237853495,-500.0,0.00041643,120]
[355527474,1741237853505,-500.0,0.00041643,120]
[355527475,1741237853514,-500.0,0.00041643,2]
[355527476,1741237853524,-500.0,0.00041643,120]
[355527477,1741237853533,-500.0,0.00041643,120]
[355527478,1741237853542,-630.68,0.00041643,120]
[355527479,1741237853552,-500.0,0.00041643,120]
[355527480,1741237853561,-500.0,0.00041643,120]
[355527481,1741237853569,-500.0,0.00041643,120]
[355527482,1741237853578,-500.0,0.00041643,120]
[355527483,1741237853586,-679.03,0.00041643,120]
[355527484,1741237853594,-831.57,0.00041643,120]
[355527485,1741237853606,-500.0,0.00041643,120]
[355527486,1741237853617,-500.0,0.00041643,120]
[355527487,1741237853626,-500.0,0.00041643,120]
[355527488,1741237853636,-522.497821,0.00041643,120]
[355527489,1741237853647,-2036.43,0.00041643,10]
[355527490,1741237853661,-500.0,0.00041643,120]
[355527491,1741237853670,-500.0,0.00041643,120]
[355527492,1741237853679,-554.96870575,0.00041643,120]
[355527493,1741237853690,-500.0,0.00041643,120]
[355527494,1741237853699,-500.0,0.00041643,120]
[355527495,1741237853709,-500.0,0.00041643,120]
[355527496,1741237853719,-532.68366919,0.00041643,120]
[355527497,1741237853728,-500.0,0.00041643,120]
[355527498,1741237853737,-500.0,0.00041643,120]
[355527499,1741237853746,-500.0,0.00041643,120]
[355527500,1741237853755,-500.0,0.00041643,120]
[355527501,1741237853764,-500.0,0.00041643,120]
[355527502,1741237853773,-506.71087216,0.00041643,120]
[355527503,1741237853783,-500.0,0.00041643,120]
[355527504,1741237853791,-500.0,0.00041643,120]
[355527505,1741237853801,-500.0,0.00041643,30]
[355527506,1741237853811,-500.0,0.00041643,120]
[355527507,1741237853820,-506.25016757,0.00041643,120]
[355527508,1741237853830,-240.23851337,0.00041643,120]
[355527509,1741237853839,-594.5,0.00041643,120]
[355527510,1741237853848,-500.0,0.00041643,120]
[355527511,1741237853858,-500.0,0.00041643,120]
[355527512,1741237853868,-500.0,0.00041643,120]
[355527513,1741237853878,-500.0,0.00041643,120]
[355527514,1741237853888,-500.0,0.00041643,120]
[355527515,1741237853897,-500.0,0.00041643,120]
[355527516,1741237853906,-2108.65,0.00041643,120]
[355527517,1741237853914,-500.0,0.00041643,120]
[355527518,1741237853923,-430.86543128,0.00041643,120]
[355527519,1741237853933,-500.0,0.00041643,120]
[355527520,1741237853942,-655.33,0.00041643,120]
[355527521,1741237853951,-500.0,0.00041643,120]
[355527522,1741237853959,-717.97,0.00041643,120]
[355527523,1741237853968,-169.0982029,0.00041643,120]
[355527524,1741237853977,-500.0,0.00041643,120]
[355527525,1741237853986,-500.0,0.00041643,120]
[355527526,1741237853995,-500.0,0.00041643,120]
[355527527,1741237854004,-500.0,0.00041643,120]
[355527528,1741237854013,-518.29433402,0.00041643,120]
[355527529,1741237854022,-500.0,0.00041643,120]
[355527530,1741237854031,-500.0,0.00041643,120]
[355527531,1741237854040,-500.0,0.00041643,120]
[355527532,1741237854049,-743.04,0.00041643,120]
[355527533,1741237854057,-500.0,0.00041643,120]
[355527534,1741237854066,-500.0,0.00041643,120]
[355527535,1741237854075,-500.0,0.00041643,120]
[355527536,1741237854084,-2423.24,0.00041643,120]
[355527537,1741237854093,-521.54,0.00041643,120]
[355527538,1741237854102,-500.0,0.00041643,120]
[355527539,1741237854111,-500.0,0.00041643,120]
[355527540,1741237854120,-200.0,0.00041643,7]
[355527541,1741237854132,-500.0,0.00041643,120]
[355527542,1741237854141,-500.0,0.00041643,120]
[355527543,1741237854151,-919.59,0.00041643,120]
[355527544,1741237854160,-500.0,0.00041643,120]
[355527545,1741237854169,-500.0,0.00041643,120]
[355527546,1741237854178,-500.0,0.00041643,120]
[355527547,1741237854187,-500.0,0.00041643,120]
[355527548,1741237854197,-590.12118521,0.00041643,120]
[355527549,1741237854206,-500.0,0.00041643,120]
[355527550,1741237854215,-500.0,0.00041643,120]
[355527551,1741237854225,-500.0,0.00041643,120]
[355527552,1741237854234,-500.0,0.00041643,120]
[355527553,1741237854244,-500.0,0.00041643,120]
[355527554,1741237854253,-993.65,0.00041643,120]
[355527555,1741237854264,-500.0,0.00041643,120]
[355527556,1741237854273,-500.0,0.00041643,120]
[355527557,1741237854380,-500.0,0.00041643,120]
[355527558,1741237854391,-500.0,0.00041643,120]
[355527559,1741237854401,-500.0,0.00041643,120]
[355527560,1741237854412,-500.0,0.00041643,120]
[355527561,1741237854422,-1355.24,0.00041643,120]
[355527562,1741237854433,-880.41,0.00041643,120]
[355527563,1741237854443,-500.0,0.00041643,120]
[355527564,1741237854453,-500.0,0.00041643,120]
[355527565,1741237854462,-500.0,0.00041643,120]
[355527566,1741237854471,-500.0,0.00041643,120]
[355527567,1741237854481,-500.0,0.00041643,120]
[355527568,1741237854490,-500.0,0.00041643,120]
[355527569,1741237854500,-500.0,0.00041643,120]
[355527570,1741237854510,-500.0,0.00041643,120]
[355527571,1741237854519,-500.0,0.00041643,120]
[355527572,1741237854529,-500.0,0.00041643,120]
[355527573,1741237854539,-531.52439321,0.00041643,120]
[355527574,1741237854549,-500.0,0.00041643,120]
[355527575,1741237854559,-574.84,0.00041643,120]
[355527576,1741237854569,-517.02429512,0.00041643,120]
[355527577,1741237854578,-593.36,0.00041643,120]
[355527578,1741237854588,-500.0,0.00041643,120]
[355527579,1741237854597,-500.0,0.00041643,120]
[355527580,1741237854607,-500.0,0.00041643,120]
[355527581,1741237854621,-500.0,0.00041643,120]
[355527582,1741237854632,-500.0,0.00041643,120]
[355527583,1741237854642,-500.0,0.00041643,120]
[355527584,1741237854652,-1391.45,0.00041643,120]
[355527585,1741237854662,-801.42,0.00041643,120]
[355527586,1741237854671,-500.0,0.00041643,120]
[355527587,1741237854679,-223.13310052,0.00041643,120]
[355527588,1741237854689,-500.0,0.00041643,120]
[355527589,1741237854698,-500.0,0.00041643,120]
[355527590,1741237854708,-500.0,0.00041643,120]
[355527591,1741237854717,-500.0,0.00041643,120]
[355527592,1741237854726,-1637.54,0.00041643,120]
[355527593,1741237854737,-500.0,0.00041643,120]
[355527594,1741237854746,-1277.32,0.00041643,120]
[355527595,1741237854756,-500.0,0.00041643,120]
[355527596,1741237854766,-500.0,0.00041643,120]
[355527597,1741237854776,-500.0,0.00041643,120]
[355527598,1741237854786,-648.9,0.00041643,120]
[355527599,1741237854795,-500.0,0.00041643,120]
[355527600,1741237854805,-500.0,0.00041643,120]
[355527601,1741237854815,-475.99245924,0.00041643,120]
[355527602,1741237854824,-500.0,0.00041643,120]
[355527603,1741237854834,-622.27,0.00041643,120]
[355527604,1741237854843,-500.0,0.00041643,120]
[355527605,1741237854853,-500.0,0.00041643,120]
[355527606,1741237854862,-500.0,0.00041643,120]
[355527607,1741237854872,-500.0,0.00041643,120]
[355527608,1741237854882,-1008.22,0.00041643,120]
[355527609,1741237854892,-500.0,0.00041643,120]
[355527610,1741237854901,-500.0,0.00041643,120]
[355527611,1741237854911,-500.0,0.00041643,120]
[355527612,1741237854920,-500.0,0.00041643,120]
[355527613,1741237854929,-500.0,0.00041643,120]
[355527614,1741237854939,-500.0,0.00041643,120]
[355527615,1741237854948,-500.0,0.00041643,120]
[355527616,1741237854957,-500.0,0.00041643,120]
[355527617,1741237854967,-500.0,0.00041643,120]
[355527618,1741237854976,-500.0,0.00041643,120]
[355527619,1741237854986,-500.0,0.00041643,120]
[355527620,1741237854994,-1098.8,0.00041643,120]
[355527621,1741237855004,-500.0,0.00041643,120]
[355527622,1741237855014,-199.3826414,0.00041643,120]
[355527623,1741237855023,-2064.99,0.00041643,120]
[355527624,1741237855033,-507.193604,0.00041643,120]
[355527625,1741237855042,-500.0,0.00041643,120]
[355527626,1741237855051,-500.0,0.00041643,120]
[355527627,1741237855060,-500.0,0.00041643,120]
[355527628,1741237855069,-500.0,0.00041643,120]
[355527629,1741237855077,-500.0,0.00041643,120]
[355527630,1741237855086,-526.38258239,0.00041643,120]
[355527631,1741237855096,-1225.72,0.00041643,120]
[355527632,1741237855105,-1013.26,0.00041643,120]
[355527633,1741237855114,-500.0,0.00041643,120]
[355527634,1741237855122,-500.0,0.00041643,120]
[355527635,1741237855131,-2252.5,0.00041643,120]
[355527636,1741237855140,-641.15537699,0.00041643,120]
[355527637,1741237855149,-500.0,0.00041643,120]
[355527638,1741237855159,-500.0,0.00041643,120]
[355527639,1741237855168,-500.0,0.00041643,120]
[355527640,1741237855178,-500.0,0.00041643,120]
[355527641,1741237855187,-500.0,0.00041643,120]
[355527642,1741237855196,-500.0,0.00041643,120]
[355527643,1741237855205,-2440.78,0.00041643,120]
[355527644,1741237855214,-500.0,0.00041643,120]
[355527645,1741237855222,-506.48149605,0.00041643,120]
[355527646,1741237855231,-502.67329206,0.00041643,120]
[355527647,1741237855241,-1000.0,0.00041643,120]
[355527648,1741237855250,-500.0,0.00041643,120]
[355527649,1741237855260,-500.0,0.00041643,120]
[355527650,1741237855269,-500.0,0.00041643,120]
[355527651,1741237855278,-500.0,0.00041643,120]
[355527652,1741237855286,-500.0,0.00041643,120]
[355527653,1741237855295,-500.0,0.00041643,120]
[355527654,1741237855303,-489.91551211,0.00041643,120]
[355527655,1741237855312,-500.0,0.00041643,120]
[355527656,1741237855321,-500.0,0.00041643,120]
[355527657,1741237855330,-1145.66,0.00041643,120]
[355527658,1741237855339,-2132.95,0.00041643,120]
[355527659,1741237855348,-500.0,0.00041643,120]
[355527660,1741237855358,-500.0,0.00041643,120]
[355527661,1741237855367,-1245.45,0.00041643,120]
[355527662,1741237855376,-500.0,0.00041643,120]
[355527663,1741237855385,-500.0,0.00041643,120]
[355527664,1741237855395,-435.34656023,0.00041643,120]
[355527665,1741237855404,-500.0,0.00041643,120]
[355527666,1741237855414,-500.0,0.00041643,120]
[355527667,1741237855423,-500.0,0.00041643,120]
[355527668,1741237855432,-500.0,0.00041643,120]
[355527669,1741237855441,-844.52,0.00041643,120]
[355527670,1741237855452,-500.0,0.00041643,120]
[355527671,1741237855467,-500.0,0.00041643,120]
[355527672,1741237855477,-500.0,0.00041643,120]
[355527673,1741237855486,-941.76,0.00041643,120]
[355527674,1741237855495,-700.87,0.00041643,120]
[355527675,1741237855505,-500.0,0.00041643,120]
[355527676,1741237855515,-500.0,0.00041643,120]
[355527677,1741237855525,-507.46515696,0.00041643,120]
[355527678,1741237855534,-500.0,0.00041643,120]
[355527679,1741237855544,-500.0,0.00041643,120]
[355527680,1741237855553,-500.0,0.00041643,120]
[355527681,1741237855563,-508.66581372,0.00041643,120]
[355527682,1741237855573,-579.97,0.00041643,120]
[355527683,1741237855584,-500.0,0.00041643,120]
[355527684,1741237855594,-500.0,0.00041643,120]
[355527685,1741237855603,-500.0,0.00041643,120]
[355527686,1741237855615,-500.0,0.00041643,120]
[355527687,1741237855626,-500.0,0.00041643,120]
[355527688,1741237855636,-500.0,0.00041643,120]
[355527689,1741237855647,-500.0,0.00041643,120]
[355527690,1741237855656,-500.0,0.00041643,120]
[355527691,1741237855666,-1710.39,0.00041643,120]
[355527692,1741237855675,-500.0,0.00041643,120]
[355527693,1741237855685,-500.0,0.00041643,120]
[355527694,1741237855695,-2233.27,0.00041643,120]
[355527695,1741237855706,-500.0,0.00041643,30]
[355527696,1741237855715,-500.0,0.00041643,120]
[355527697,1741237855725,-476.98298526,0.00041643,45]
[355527698,1741237855734,-500.0,0.00041643,120]
[355527699,1741237855743,-525.93,0.00041643,120]
[355527700,1741237855753,-878.92,0.00041643,120]
[355527701,1741237855762,-1667.93,0.00041643,120]
[355527702,1741237855772,-500.0,0.00041643,120]
[355527703,1741237855782,-500.0,0.00041643,120]
[355527704,1741237855791,-500.0,0.00041643,120]
[355527705,1741237855799,-500.0,0.00041643,120]
[355527706,1741237855924,-773.17,0.00041643,120]
[355527707,1741237855934,-500.0,0.00041643,120]
[355527708,1741237855943,-710.43,0.00041643,120]
[355527709,1741237855953,-500.0,0.00041643,120]
[355527710,1741237855963,-1122.54,0.00041643,120]
[355527711,1741237855972,-500.0,0.00041643,120]
[355527712,1741237855981,-929.52,0.00041643,120]
[355527713,1741237855990,-665.54,0.00041643,120]
[355527714,1741237856000,-609.00403384,0.00041643,120]
[355527715,1741237856010,-500.0,0.00041643,120]
[355527716,1741237856020,-11268.24,0.00041643,120]
[355527717,1741237856029,-500.0,0.00041643,120]
[355527718,1741237856039,-520.81,0.00041643,120]
[355527719,1741237856048,-500.0,0.00041643,120]
[355527720,1741237856058,-500.0,0.00041643,120]
[355527721,1741237856067,-980.75,0.00041643,120]
[355527722,1741237856077,-515.98,0.00041643,120]
[355527723,1741237856086,-2137.6,0.00041643,120]
[355527724,1741237856095,-7648.47,0.00041643,120]
[355527725,1741237856104,-500.0,0.00041643,120]
[355527726,1741237856114,-500.0,0.00041643,120]
[355527727,1741237856123,-500.0,0.00041643,120]
[355527728,1741237856132,-3842.31,0.00041643,120]
[355527729,1741237856141,-998.23,0.00041643,120]
[355527730,1741237856150,-690.9,0.00041643,120]
[355527731,1741237856159,-2904.75,0.00041643,120]
[355527732,1741237856170,-500.0,0.00041643,120]
[355527733,1741237856178,-3521.3,0.00041643,120]
[355527734,1741237856186,-500.0,0.00041643,120]
[355527735,1741237856194,-500.0,0.00041643,120]
[355527736,1741237856202,-6868.17,0.00041643,120]
[355527737,1741237856211,-500.0,0.00041643,120]
[355527738,1741237856220,-4655.01,0.00041643,120]
[355527739,1741237856229,-1372.01,0.00041643,120]
[355527740,1741237856239,-500.0,0.00041643,120]
[355527741,1741237856248,-500.0,0.00041643,120]
[355527742,1741237856258,-509.14,0.00041643,120]
[355527743,1741237856267,-1028.46,0.00041643,120]
[355527744,1741237856276,-500.0,0.00041643,120]
[355527745,1741237856285,-11673.71,0.00041643,120]
[355527746,1741237856294,-500.0,0.00041643,120]
[355527747,1741237856304,-536.32,0.00041643,120]
[355527748,1741237856313,-500.0,0.00041643,120]
[355527749,1741237856322,-428.91544046,0.00041643,120]
[355527750,1741237856331,-500.0,0.00041643,120]
[355527751,1741237856344,-500.0,0.00041643,120]
[355527752,1741237856353,-559.12,0.00041643,120]
[355527753,1741237856362,-696.97,0.00041643,120]
[355527754,1741237856371,-869.32,0.00041643,120]
[355527755,1741237856381,-500.0,0.00041643,120]
[355527756,1741237856389,-500.0,0.00041643,120]
[355527757,1741237856398,-4221.54,0.00041643,120]
[355527758,1741237856407,-1424.52,0.00041643,120]
[355527759,1741237856415,-590.32,0.00041643,120]
[355527760,1741237856424,-500.0,0.00041643,120]
[355527761,1741237856433,-500.0,0.00041643,120]
[355527762,1741237856442,-500.0,0.00041643,120]
[355527763,1741237856451,-500.0,0.00041643,120]
[355527764,1741237856462,-450.0,0.00041643,120]
[355527765,1741237856470,-450.0,0.00041643,120]
[355527766,1741237856479,-500.0,0.00041643,120]
[355527767,1741237856489,-500.0,0.00041643,120]
[355527768,1741237856498,-523.883852,0.00041643,120]
[355527769,1741237856507,-450.0,0.00041643,120]
[355527770,1741237856518,-500.0,0.00041643,120]
[355527771,1741237856531,-2002.55,0.00041643,120]
[355527772,1741237856548,-450.0,0.00041643,120]
[355527773,1741237856565,-501.33603118,0.00041643,120]
[355527774,1741237856582,-2207.75,0.00041643,120]
[355527775,1741237856601,-1766.01,0.00041643,120]
[355527776,1741237856620,-500.0,0.00041643,120]
[355527777,1741237856637,-1679.93,0.00041643,120]
[355527778,1741237856654,-592.82,0.00041643,30]
[355527779,1741237856668,-883.0,0.00041643,120]
[355527780,1741237856683,-507.96,0.00041643,120]
[355527781,1741237856703,-4870.97,0.00041643,120]
[355527782,1741237856722,-3457.45,0.00041643,120]
[355527783,1741237856733,-500.0,0.00041643,120]
[355527784,1741237856750,-500.0,0.00041643,120]
[355527785,1741237856766,-500.0,0.00041643,120]
[355527786,1741237856781,-622.42,0.00041643,120]
[355527787,1741237856795,-500.0,0.00041643,120]
[355527788,1741237856809,-500.0,0.00041643,120]
[355527789,1741237856824,-787.48,0.00041643,120]
[355527790,1741237856839,-4039.68,0.00041643,120]
[355527791,1741237856854,-129496.01,0.00041643,7]
[355527792,1741237856868,-500.0,0.00041643,120]
[355527793,1741237856883,-500.0,0.00041643,120]
[355527794,1741237856898,-1811.17,0.00041643,120]
[355527795,1741237856912,-510.8,0.00041643,120]
[355527796,1741237856927,-898.12,0.00041643,120]
[355527797,1741237856942,-500.0,0.00041643,120]
[355527798,1741237856955,-500.0,0.00041643,120]
[355527799,1741237856969,-222.04977029,0.00041643,120]
[355527800,1741237856984,-689.01,0.00041643,120]
[355527801,1741237856998,-500.0,0.00041643,120]
[355527802,1741237857013,-500.0,0.00041643,120]
[355527803,1741237857027,-851.22,0.00041643,120]
[355527804,1741237857041,-500.0,0.00041643,120]
[355527805,1741237857056,-500.0,0.00041643,120]
[355527806,1741237857070,-500.0,0.00041643,120]
[355527807,1741237857085,-500.0,0.00041643,120]
[355527808,1741237857099,-500.0,0.00041643,120]
[355527809,1741237857113,-500.0,0.00041643,120]
[355527810,1741237857127,-3667.84,0.00041643,120]
[355527811,1741237857141,-500.0,0.00041643,120]
[355527812,1741237857155,-4320.76,0.00041643,120]
[355527813,1741237857169,-500.0,0.00041643,120]
[355527814,1741237857183,-500.0,0.00041643,120]
[355527815,1741237857197,-500.0,0.00041643,120]
[355527816,1741237857215,-500.0,0.00041643,120]
[355527817,1741237857229,-500.0,0.00041643,120]
[355527818,1741237857243,-500.0,0.00041643,120]
[355527819,1741237857258,-500.0,0.00041643,120]
[355527820,1741237857273,-1003.56,0.00041643,120]
[355527821,1741237857287,-500.0,0.00041643,120]
[355527822,1741237857301,-500.0,0.00041643,120]
[355527823,1741237857315,-1551.44,0.00041643,120]
[355527824,1741237857330,-630.01,0.00041643,120]
[355527825,1741237857344,-1531.45,0.00041643,120]
[355527826,1741237857359,-749.41,0.00041643,120]
[355527827,1741237857374,-500.0,0.00041643,120]
[355527828,1741237857389,-500.0,0.00041643,120]
[355527829,1741237857403,-500.0,0.00041643,120]
[355527830,1741237857417,-500.0,0.00041643,120]
[355527831,1741237857432,-500.0,0.00041643,120]
[355527832,1741237857446,-14800.99,0.00041643,30]
[355527833,1741237857460,-15632.9,0.00041643,120]
[355527834,1741237857475,-516.50873779,0.00041643,120]
[355527835,1741237857488,-555.07,0.00041643,120]
[355527836,1741237857502,-500.0,0.00041643,120]
[355527837,1741237857518,-5660.0,0.00041643,120]
[355527838,1741237857532,-500.0,0.00041643,120]
[355527839,1741237857547,-500.0,0.00041643,120]
[355527840,1741237857562,-500.0,0.00041643,120]
[355527841,1741237857717,-16283.84,0.00041643,120]
[355527842,1741237857726,-664.19,0.00041643,120]
[355527843,1741237857735,-500.0,0.00041643,120]
[355527844,1741237857743,-500.0,0.00041643,120]
[355527845,1741237857752,-1264.44,0.00041643,120]
[355527846,1741237857762,-500.0,0.00041643,120]
[355527847,1741237857770,-500.0,0.00041643,120]
[355527848,1741237857779,-708.29,0.00041643,120]
[355527849,1741237857787,-919.06,0.00041643,120]
[355527850,1741237857796,-1404.31,0.00041643,120]
[355527851,1741237857805,-500.0,0.00041643,120]
[355527852,1741237857814,-598.7,0.00041643,120]
[355527853,1741237857822,-810.81,0.00041643,120]
[355527854,1741237857831,-815.42,0.00041643,120]
[355527855,1741237857839,-500.0,0.00041643,120]
[355527856,1741237857848,-2565.08,0.00041643,120]
[355527857,1741237857857,-500.0,0.00041643,120]
[355527858,1741237857866,-500.0,0.00041643,120]
[355527859,1741237857875,-424.51169993,0.00041643,120]
[355527860,1741237857884,-500.0,0.00041643,120]
[355527861,1741237857893,-500.0,0.00041643,120]
[355527862,1741237857902,-453.21103818,0.00041643,120]
[355527863,1741237857910,-500.0,0.00041643,120]
[355527864,1741237857919,-500.0,0.00041643,120]
[355527865,1741237857928,-500.0,0.00041643,120]
[355527866,1741237857937,-644.96,0.00041643,120]
[355527867,1741237857946,-500.0,0.00041643,120]
[355527868,1741237857953,-590.32,0.00041643,120]
[355527869,1741237857962,-2151.3,0.00041643,120]
[355527870,1741237857971,-500.0,0.00041643,120]
[355527871,1741237857981,-653.74,0.00041643,120]
[355527872,1741237857990,-549.46,0.00041643,120]
[355527873,1741237858000,-1171.27,0.00041643,120]
[355527874,1741237858010,-500.0,0.00041643,120]
[355527875,1741237858020,-1334.48,0.00041643,120]
[355527876,1741237858029,-500.0,0.00041643,120]
[355527877,1741237858039,-500.0,0.00041643,120]
[355527878,1741237858048,-1252.24,0.00041643,120]
[355527879,1741237858058,-500.0,0.00041643,120]
[355527880,1741237858068,-500.0,0.00041643,120]
[355527881,1741237858077,-503.86274598,0.00041643,120]
[355527882,1741237858087,-500.0,0.00041643,120]
[355527883,1741237858096,-593.16,0.00041643,120]
[355527884,1741237858105,-1664.79,0.00041643,120]
[355527885,1741237858114,-653.07,0.00041643,120]
[355527886,1741237858123,-1311.74,0.00041643,120]
[355527887,1741237858133,-500.0,0.00041643,120]
[355527888,1741237858142,-500.0,0.00041643,120]
[355527889,1741237858151,-1412.51,0.00041643,120]